[Event "37th ECCC 2022"]
[Site "Mayrhofen"]
[Date "2022.10.04"]
[Round "2.73"]
[White "Gallana, Marco"]
[Black "Meshkovs, Nikita"]
[Result "1/2-1/2"]
[ECO "E10"]
[WhiteElo "2265"]
[BlackElo "2566"]
[Annotator "TA"]
[PlyCount "69"]
[EventDate "2022.10.03"]
[EventType "team-tourn"]
[EventCountry "AUT"]
[SourceTitle "playchess.com"]
[Source "ChessBase"]
[SourceQuality "1"]
[TimeControl "40/5400+30:1800+30"]

{[%evp 17,69,12,16,20,23,24,34,14,27,0,0,0,6,0,0,0,11,-19,3,0,12,6,20,24,125,123,129,89,116,25,90,58,66,63,57,57,56,55,52,19,37,40,39,24,81,80,87,77,83,0,77,0,81,0]} 1. d4 {[%emt 0:00:03]} Nf6 {[%emt 0:00:19]} 2. c4 {[%emt 0:00:21]} e6 {[%emt 0:00:11]} 3. Nf3 {[%emt 0:00:27]} d5 {[%emt 0:00:25]} 4. g3 {[%emt 0:00:31]} Bb4+ {[%emt 0:00:49]} 5. Bd2 {[%emt 0:00:20]} Be7 {[%emt 0:00:11]} 6. Bg2 {[%emt 0:00:24]} O-O {[%emt 0:00:10]} 7. O-O {[%emt 0:00:26]} Nbd7 {[%emt 0:00:22]} 8. Qc2 {[%emt 0:09:24]} c6 {[%emt 0:00:30]} 9. Rd1 {[%emt 0:00:59]} Ne4 {[%emt 0:00:48]} 10. Nc3 {[%emt 0:03:08] E11: Bogo-Indian.} f5 {[%emt 0:01:07]} 11. Be1 {[%emt 0:00:55]} Bf6 {[%emt 0:12:07] [#]} 12. Nd2 $146 {[%emt 0:16:35][%cal Bf3d2,Bd2b3,Bb3c5,Bc5d3,Bd3e5][%mdl 32] White is slightly better.} ({Predecessor:} 12. b4 g5 13. b5 Qe7 14. bxc6 bxc6 15. cxd5 cxd5 16. Rab1 Ba6 17. Nxe4 fxe4 18. Bb4 {½-½ (41) Podolchenko,E (2398)-Ladva,O (2530) Minsk 2017}) 12... Nd6 {[%emt 0:06:11]} 13. cxd5 {[%emt 0:07:50]} exd5 {[%emt 0:01:32]} 14. e3 {[%emt 0:00:35]} Nb6 {[%emt 0:03:56]} 15. a4 {[%emt 0:04:21]} a5 {[%emt 0:00:57]} 16. Nb3 {[%emt 0:00:57]} g5 {[%emt 0:11:18]} 17. Nc5 {[%emt 0:05:38]} Bg7 {[%emt 0:05:47]} 18. Ne2 {[%emt 0:16:16]} Kh8 {[%emt 0:03:34]} 19. b3 {[%emt 0:02:39]} Qe7 {[%emt 0:02:53]} 20. Nd3 {[%emt 0:10:15]} f4 {[%emt 0:12:35]} (20... Ne4 $11 {keeps the balance.}) 21. exf4 $16 {[%emt 0:00:30]} Bf5 {[%emt 0:01:23]} 22. Qb2 {[%emt 0:02:48]} Nd7 {[%emt 0:07:48]} 23. Rac1 {[%emt 0:03:48]} ({Better is} 23. fxg5 $16 {Hoping for h4.} Qxg5 24. Ndf4) 23... Rfe8 {[%emt 0:01:55]} (23... Rae8 $11 24. Bf1 (24. Ne5 gxf4 25. gxf4 Bh6 $14) 24... Bh6) 24. Ne5 {[%emt 0:00:55]} gxf4 {[%emt 0:00:14]} 25. Nxf4 {[%emt 0:00:25]} Nxe5 {[%emt 0:01:43]} 26. dxe5 {[%emt 0:00:08]} Bxe5 {[%emt 0:00:50]} 27. Bc3 {[%emt 0:00:20]} Bxc3 {[%emt 0:04:01]} 28. Qxc3+ {[%emt 0:00:09]} Qe5 {[%emt 0:01:44]} 29. Qc5 {[%emt 0:04:54][%cal Rg2d5]} Ne4 $1 {[%emt 0:09:37]} 30. Bxe4 {[%emt 0:03:18]} Bxe4 {[%emt 0:00:02] [#]} (30... Qxe4 $11 31. Qc3+ Qe5) 31. Re1 $1 {[%emt 0:00:31]} Qg7 {[%emt 0:01:27]} 32. Nh5 {[%emt 0:03:10]} Qe5 {[%emt 0:04:12]} 33. Nf4 {[%emt 0:00:12]} (33. f3 $16 {And now Nf4 would win.} Qxh5 34. fxe4) 33... Qf6 {[%emt 0:03:45]} (33... Qg7 $1 $11) 34. Nh5 {[%emt 0:01:57]} Qe5 {[%emt 0:02:20]} 35. Nf4 {Weighted Error Value: White=0.23 (precise) /Black=0.22 (precise)} (35. f3 $16 Qxh5 36. fxe4) 1/2-1/2

[Event "37th ECCC 2022"]
[Site "Mayrhofen"]
[Date "2022.10.04"]
[Round "2.74"]
[White "Niemi, Mikko"]
[Black "Hoffmann, Hendrik"]
[Result "1-0"]
[ECO "E06"]
[WhiteElo "2306"]
[BlackElo "2238"]
[Annotator "TA"]
[PlyCount "127"]
[EventDate "2022.10.03"]
[EventType "team-tourn"]
[EventCountry "AUT"]
[SourceTitle "playchess.com"]
[Source "ChessBase"]
[SourceQuality "1"]
[TimeControl "40/5400+30:1800+30"]

{[%evp 19,126,32,29,17,17,0,0,0,19,-32,20,20,27,0,15,11,18,18,18,17,17,-8,4,3,10,10,7,8,8,5,13,12,7,0,17,-43,0,0,0,0,33,0,0,0,3,8,8,6,24,24,215,215,207,206,215,215,327,294,290,290,265,120,277,277,244,142,142,142,597,559,1993,1768,834,607,511,493,29970,29972,29973,29974,29981,760,29977,29978,29977,29976,29978,29973,29973,29973,29973,29974,29974,29975,29975,29976,29976,29977,29977,29978,29977,29978,29978,29979,29981,29982,29988,29989,29999]} 1. c4 {[%emt 0:00:08]} Nf6 {[%emt 0:00:21]} 2. g3 {[%emt 0:00:33]} e6 {[%emt 0:00:15]} 3. Nf3 {[%emt 0:01:06]} d5 {[%emt 0:00:25]} 4. d4 {[%emt 0:00:25]} Be7 {[%emt 0:01:31]} 5. Bg2 {[%emt 0:00:23]} O-O {[%emt 0:00:59]} 6. O-O {[%emt 0:00:14]} c5 {[%emt 0:02:59]} 7. cxd5 {[%emt 0:03:55]} exd5 {[%emt 0:02:03]} 8. dxc5 {[%emt 0:04:19]} Bxc5 {[%emt 0:01:53]} 9. Qc2 {[%emt 0:00:44]} Bb6 {[%emt 0:01:25]} 10. Nc3 {[%emt 0:01:43]} Nc6 {[%emt 0:01:49]} 11. Bg5 {[%emt 0:06:01] 11.Na4 is more advanced technology. D30: Queen's Gambit Declined: Systems without Nc3.} d4 {[%emt 0:12:17]} 12. Na4 {[%emt 0:07:08]} h6 {[%emt 0:09:14]} 13. Nxb6 {[%emt 0:06:54] The position is equal.} axb6 {[%emt 0:01:32]} 14. Bf4 {[%emt 0:02:04]} (14. Bxf6 $11 Qxf6 15. a3) 14... Be6 {[%emt 0:01:54]} (14... Ra5 $15) 15. Rfd1 $11 {[%emt 0:03:58] [#]} Re8 $146 {[%emt 0:03:06][%cal Bf8e8,Be8e2,Be2b2][%mdl 32]} ({Predecessor:} 15... Ra5 16. b4 Rd5 17. Qb2 b5 18. Ne1 Rd7 19. a4 bxa4 20. Rxa4 Qb6 21. Nd3 Bc4 {1-0 (21) Lupulescu,C (2630)-Kowsarinia,A (2331) Baku 2014}) 16. Ne5 {[%emt 0:10:25]} Bd5 {[%emt 0:16:17] [#] Strongly threatening ...Bxg2.} 17. Nxc6 {[%emt 0:12:27]} Bxc6 {[%emt 0:06:06]} 18. Bxc6 {[%emt 0:11:06]} bxc6 {[%emt 0:01:41]} 19. Qxc6 {[%emt 0:00:03][%cal Of4e3]} Rxe2 {[%emt 0:01:28]} 20. Qb5 {[%emt 0:00:38]} Qe8 {[%emt 0:05:46]} 21. Qxe8+ {[%emt 0:13:14]} Raxe8 {[%emt 0:01:13]} 22. Rxd4 {[%emt 0:00:04]} Rxb2 {[%emt 0:02:16]} 23. Be3 {[%emt 0:03:05]} b5 {[%emt 0:07:33][%cal Bb6b5,Bb5b4,Bb4a3,Ba3a2][%mdl 32]} 24. a3 {[%emt 0:00:39]} Ra8 {[%emt 0:04:28]} 25. Rd3 {[%emt 0:00:34]} Ne4 {[%emt 0:01:39]} 26. Re1 {[%emt 0:01:37]} b4 {[%emt 0:06:16]} 27. f3 {[%emt 0:05:46] [#]} ({White should try} 27. axb4 $11 Rxb4 28. Rc1) 27... bxa3 $1 {[%emt 0:01:36]} 28. fxe4 {[%emt 0:00:16]} a2 {[%emt 0:00:13]} 29. Rdd1 {[%emt 0:00:15]} Rab8 {[%emt 0:02:09]} 30. Ra1 {[%emt 0:01:48]} Rc8 {[%emt 0:01:56]} 31. Kf1 {[%emt 0:01:30]} Rxh2 {[%emt 0:01:54]} 32. Re2 {[%emt 0:01:00]} Rxe2 {[%emt 0:00:46]} (32... Rh1+ $2 33. Bg1 $18) 33. Kxe2 {[%emt 0:00:01][%mdl 4096] Endgame KRB-KR} Rc2+ {[%emt 0:00:11]} 34. Bd2 {[%emt 0:01:08] Threatens to win with Kd3.} Kh7 $2 {[%emt 0:00:21]} (34... Rb2 $11) 35. Kd3 $18 {[%emt 0:00:11]} Rb2 {[%emt 0:00:19]} 36. Kc3 {[%emt 0:00:22] Prevents Rb3+.} Rb5 {[%emt 0:00:18]} 37. Rxa2 {[%emt 0:00:33]} f5 {[%emt 0:00:19]} (37... h5 $142 38. Ra7 Kg6) 38. Kc4 {[%emt 0:01:38]} Re5 {[%emt 0:00:10]} 39. exf5 {[%emt 0:00:41]} Rxf5 {[%emt 0:00:08]} 40. Bf4 {[%emt 0:01:05]} (40. Kd4 $18 {and White stays clearly on top.}) 40... Rf7 $2 {[%emt 0:02:19]} (40... Kg6 $16 41. Ra4 Kh5) 41. Kd5 {[%emt 0:02:26]} Kg6 {[%emt 0:01:49]} 42. Ke6 {[%emt 0:02:19]} ({Better is} 42. Ke4 $18) 42... Rf6+ $16 {[%emt 0:03:31]} 43. Ke5 {[%emt 0:00:31]} Kh7 $2 {[%emt 0:06:04][%mdl 8192]} (43... Kh5 $16 {is more resistant.} 44. Ra7 Rg6) 44. Ra7 {[%emt 0:01:42]} Kg8 {[%emt 0:01:13]} 45. Ke4 {[%emt 0:00:51]} Rg6 {[%emt 0:02:18]} 46. Be5 {[%emt 0:01:01]} Rg5 {[%emt 0:00:22]} 47. Rd7 {[%emt 0:00:45] Hoping for Bf4.} Kh7 {[%emt 0:00:18]} (47... Rg6 $18 48. Ra7 Rg5) 48. Bf4 {[%emt 0:02:08]} Rg6 {[%emt 0:00:53]} 49. Rd6 {[%emt 0:03:45]} Rg4 {[%emt 0:05:50]} 50. Kf3 {[%emt 0:01:05]} (50. Kf5 $142 h5 51. Rd8 g6+ 52. Ke6 g5 53. Be5 Re4 54. Kf5 Rxe5+ 55. Kxe5) 50... Rg6 {[%emt 0:04:34]} 51. Rxg6 {[%emt 0:01:11] White mates.} Kxg6 {[%emt 0:00:04] KB-KPP} 52. Be5 {[%emt 0:00:22]} h5 {[%emt 0:01:13]} 53. Bc7 {[%emt 0:04:40]} Kg5 {[%emt 0:02:16]} 54. Bd8+ {[%emt 0:01:46]} Kf5 {[%emt 0:00:11]} 55. Be7 {[%emt 0:00:43]} Ke5 {[%emt 0:01:56]} 56. Bf8 {[%emt 0:01:51]} g6 {[%emt 0:00:38]} 57. Bh6 {[%emt 0:00:58]} Kf5 {[%emt 0:00:41]} 58. Bf4 {[%emt 0:00:38]} g5 {[%emt 0:02:07]} 59. Bc7 {[%emt 0:00:25]} Kf6 {[%emt 0:02:19]} 60. Ke4 {[%emt 0:00:21]} Kg6 {[%emt 0:00:25]} 61. Bd8 {[%emt 0:01:08]} Kh6 {[%emt 0:01:27]} 62. Kf5 {[%emt 0:00:35]} h4 {[%emt 0:00:15]} 63. Bxg5+ {[%emt 0:00:36]} Kh5 {[%emt 0:00:06]} 64. g4# {[%emt 0:00:13] Weighted Error Value: White=0.23 (precise) /Black=0.62} 1-0

[Event "37th ECCC 2022"]
[Site "Mayrhofen"]
[Date "2022.10.04"]
[Round "2.74"]
[White "Salo, Heikki"]
[Black "Hausner, Ivan"]
[Result "*"]
[ECO "A10"]
[WhiteElo "2248"]
[BlackElo "2266"]
[Annotator "TA"]
[PlyCount "36"]
[EventDate "2022.10.03"]
[EventType "team-tourn"]
[EventCountry "AUT"]
[SourceTitle "playchess.com"]
[Source "ChessBase"]
[SourceQuality "1"]
[TimeControl "40/5400+30:1800+30"]

{[%evp 19,21,24,21,22]} 1. c4 {[%emt 0:00:08]} Nf6 {[%emt 0:00:21]} 2. g3 {[%emt 0:00:33]} e6 {[%emt 0:00:15]} 3. Nf3 {[%emt 0:01:06]} d5 {[%emt 0:00:25]} 4. d4 {[%emt 0:00:25]} Be7 {[%emt 0:01:31]} 5. Bg2 {[%emt 0:00:23]} O-O {[%emt 0:00:59]} 6. O-O {[%emt 0:00:14]} c5 {[%emt 0:02:59]} 7. cxd5 {[%emt 0:03:55]} exd5 {[%emt 0:02:03]} 8. dxc5 {[%emt 0:04:19]} Bxc5 {[%emt 0:01:53]} 9. Qc2 {[%emt 0:00:44]} Bb6 {[%emt 0:01:25]} 10. Nc3 {[%emt 0:01:43]} Nc6 {[%emt 0:01:49]} 11. Bg5 {[%emt 0:06:01] [#] A rather calm draw. 11.Na4 might become the main line. D30: Queen's Gambit Declined: Systems without Nc3.} {Predecessor:} d4 $146 12. Ne4 Bf5 13. Nh4 Bxe4 14. Bxe4 h6 15. Bxf6 Qxf6 16. Nf3 Rfe8 17. a3 Re7 18. Rac1 Rae8 {1-0 (35) Andreikin,D (2728)-Shipov,S (2541) Chess.com INT 2021} *

[Event "37th ECCC 2022"]
[Site "Mayrhofen"]
[Date "2022.10.04"]
[Round "2.75"]
[White "Lever, Erwan"]
[Black "Paasikangas, Johanna"]
[Result "*"]
[WhiteElo "2242"]
[BlackElo "2125"]
[Annotator "TA"]
[PlyCount "29"]
[EventDate "2022.10.03"]
[EventType "team-tourn"]
[EventCountry "AUT"]
[SourceTitle "playchess.com"]
[Source "ChessBase"]
[SourceQuality "1"]
[TimeControl "40/5400+30:1800+30"]

{[%evp 9,16,14,14,10,14,11,25,30,21]} 1. e4 {[%emt 0:00:03]} c5 {[%emt 0:00:07]} 2. Nf3 {[%emt 0:00:15]} a6 {[%emt 0:00:06]} 3. g3 {[%emt 0:02:46]} Nc6 {[%emt 0:00:44]} 4. Bg2 {[%emt 0:02:36]} g6 {[%emt 0:01:11]} 5. O-O {[%emt 0:02:32]} Bg7 {[%emt 0:00:50]} 6. c3 {[%emt 0:03:08] B28: Sicilian: 2 Nf3 a6 (O'Kelly Variation).} e5 {[%emt 0:01:51] Prevents d4.} 7. d3 {[%emt 0:01:08]} Nge7 {[%emt 0:03:06]} 8. Be3 {[%emt 0:02:32]} d6 {[%emt 0:04:21] [#] Not much happened in this game.  Weighted Error Value: White=0.02 (flawless) /Black=0.04 (flawless)} {Predecessor:} 9. d4 $146 cxd4 10. cxd4 O-O 11. d5 Nb8 12. Nc3 h6 13. a4 f5 14. a5 Nd7 15. Qb3 {1-0 (79) Perez Gormaz,M (2404)-Marcziter,D (2259) Chess.com INT 2021} *

[Event "37th ECCC 2022"]
[Site "Mayrhofen"]
[Date "2022.10.04"]
[Round "2.75"]
[White "Zulfic, Fedja"]
[Black "Heinola, Vesa"]
[Result "1/2-1/2"]
[ECO "B28"]
[WhiteElo "2157"]
[BlackElo "2265"]
[Annotator "TA"]
[PlyCount "84"]
[EventDate "2022.10.03"]
[EventType "team-tourn"]
[EventCountry "AUT"]
[SourceTitle "playchess.com"]
[Source "ChessBase"]
[SourceQuality "1"]
[TimeControl "40/5400+30:1800+30"]

{[%evp 9,84,2,20,0,0,0,18,15,19,-6,0,-6,0,8,0,-8,0,-8,0,0,32,24,35,0,103,-67,-61,-127,39,-185,-194,-243,-247,-386,-360,-490,-127,-137,-115,-110,-24,-16,-18,-18,0,-2,-8,-2,-3,-3,0,-4,0,0,0,0,0,0,0,0,0,0,0,0,8,0,8,8,37,0,0,0,0,0,0,0,0]} 1. e4 {[%emt 0:00:03]} c5 {[%emt 0:00:07]} 2. Nf3 {[%emt 0:00:15]} a6 {[%emt 0:00:06]} 3. g3 {[%emt 0:02:46]} Nc6 {[%emt 0:00:44]} 4. Bg2 {[%emt 0:02:36]} g6 {[%emt 0:01:11]} 5. O-O {[%emt 0:02:32]} Bg7 {[%emt 0:00:50]} 6. c3 {[%emt 0:03:08] B28: Sicilian: 2 Nf3 a6 (O'Kelly Variation).} e5 {[%emt 0:01:51] Prevents d4.} 7. d3 {[%emt 0:01:08]} Nge7 {[%emt 0:03:06]} 8. Be3 {[%emt 0:02:32]} d6 {[%emt 0:04:21]} 9. Qd2 {[%emt 0:09:47]} O-O {[%emt 0:03:20]} 10. Bh6 {[%emt 0:20:36] [#]} f6 $146 {[%emt 0:01:11]} ({Predecessor:} 10... f5 11. Bxg7 Kxg7 12. h3 fxe4 13. dxe4 Bxh3 14. Bxh3 Rxf3 15. Qe2 Rf6 {0-1 (36) Opasiak,D (1797)-Sukandar,I (2387) Caleta 2018}) 11. Na3 {[%emt 0:05:58][%cal Bb1a3,Ba3c2,Bc2e3][%mdl 32]} Bxh6 {[%emt 0:10:43]} 12. Qxh6 {[%emt 0:00:12]} Be6 {[%emt 0:00:50]} 13. h4 {[%emt 0:14:36]} b5 {[%emt 0:04:50]} 14. Nc2 {[%emt 0:09:15]} Qb6 {[%emt 0:03:56]} 15. h5 {[%emt 0:03:05]} Rf7 {[%emt 0:11:36]} 16. Ne3 {[%emt 0:03:46]} (16. Bh3 $5 Nd8 17. Ne3 $14) 16... Rg7 {[%emt 0:03:31]} (16... Bd7 $11 {keeps the balance.}) 17. Nh4 $2 {[%emt 0:08:50]} ({White should play} 17. hxg6 $16 Rxg6 18. Qh1) 17... Rf8 $1 $15 {[%emt 0:12:48]} 18. f4 {[%emt 0:07:44] [#]} ({White should try} 18. Nd5 $15 Bxd5 19. exd5) 18... exf4 $2 {[%emt 0:01:02]} (18... Nd8 $1 $17 {[%cal Rd8f7] Threatens to win with ...Nf7.} 19. fxe5 dxe5) 19. Qxf4 $2 {[%emt 0:00:29] [#]} (19. gxf4 $14 {stays ahead.} Bd7 20. Rae1 (20. hxg6 hxg6 21. f5 Rh7 $15)) 19... Ne5 $1 $19 {[%emt 0:00:49] aiming for ...g5.} 20. hxg6 {[%emt 0:00:35]} (20. Qf2 $142) 20... hxg6 {[%emt 0:00:15] And now ...g5 would win.} 21. d4 {[%emt 0:00:35]} (21. Qf2 $142 Nxd3 22. Qd2) 21... cxd4 {[%emt 0:01:36]} 22. cxd4 {[%emt 0:00:03]} Qxd4 {[%emt 0:01:25]} (22... g5 $19 {has better winning chances.} 23. Qf2 gxh4 24. dxe5 hxg3) 23. Rad1 {[%emt 0:00:12]} Qc5 {[%emt 0:00:13]} 24. Qf2 {[%emt 0:00:40]} Nc4 {[%emt 0:09:55]} (24... N7c6 $17 25. a3 Bb3) 25. Nxc4 $11 {[%emt 0:00:19]} Bxc4 {[%emt 0:00:11]} ({Much less strong is} 25... bxc4 26. Qxc5 dxc5 27. Rd6 $14) 26. Rfe1 {[%emt 0:00:19]} Nc6 {[%emt 0:05:19]} 27. b3 {[%emt 0:00:57]} Be6 {[%emt 0:02:09]} 28. Qxc5 {[%emt 0:00:30]} dxc5 {[%emt 0:00:07]} 29. Rd6 $132 {[%emt 0:00:06][%csl LRc6,LRe6][%mdl 2048] White is not holding back} Nd4 {[%emt 0:01:11]} 30. Rxa6 {[%emt 0:00:12]} Rd8 {[%emt 0:01:41]} 31. Nf3 {[%emt 0:00:20] Strongly threatening Nxd4.} Bg4 {[%emt 0:03:28]} 32. Rxf6 {[%emt 0:01:38]} Bxf3 {[%emt 0:00:44]} 33. Bxf3 {[%emt 0:00:04]} Ra7 {[%emt 0:00:13]} 34. e5 {[%emt 0:01:06]} Nxf3+ {[%emt 0:03:00]} 35. Rxf3 {[%emt 0:00:01]} Rxa2 {[%emt 0:00:21][%mdl 4096] Endgame KRR-KRR} 36. e6 {[%emt 0:00:54]} Ra7 {[%emt 0:00:40]} 37. Re5 {[%emt 0:00:34]} Rc7 {[%emt 0:02:10]} 38. Rc3 {[%emt 0:00:34]} Rdc8 {[%emt 0:00:56]} 39. b4 {[%emt 0:00:30][%cal Rc3c5]} Kf8 {[%emt 0:02:00] The position is equal.} (39... cxb4 40. Rxc7 Rxc7 41. e7 $18) 40. Rcxc5 {[%emt 0:00:30]} Rxc5 {[%emt 0:00:57]} 41. bxc5 {[%emt 0:03:11]} b4 {[%emt 0:01:03]} 42. Re4 {[%emt 0:02:42]} Rxc5 {[%emt 0:00:23] And White is the lucky defender.  Weighted Error Value: White=0.33/Black=0.32} 1/2-1/2

[Event "37th ECCC 2022"]
[Site "Mayrhofen"]
[Date "2022.10.04"]
[Round "2.76"]
[White "Kauko, Jussi"]
[Black "Hill, Alistair"]
[Result "1-0"]
[ECO "A34"]
[WhiteElo "2250"]
[BlackElo "2173"]
[Annotator "TA"]
[PlyCount "85"]
[EventDate "2022.10.03"]
[EventType "team-tourn"]
[EventCountry "AUT"]
[SourceTitle "playchess.com"]
[Source "ChessBase"]
[SourceQuality "1"]
[TimeControl "40/5400+30:1800+30"]

{[%evp 11,85,27,36,8,26,16,29,18,16,29,9,0,-3,-33,0,-94,-14,-59,14,14,12,22,17,0,-15,0,18,17,19,12,16,14,16,12,9,21,32,-62,-67,-75,-76,-80,-66,-66,-26,-42,0,-4,-16,-10,0,0,0,-14,-19,-15,0,-92,-79,-77,-12,-14,-17,-12,193,34,31,0,214,0,767,759,1015,975,2059,1610]} 1. c4 {[%emt 0:00:03]} Nf6 {[%emt 0:00:03]} 2. g3 {[%emt 0:00:05]} c5 {[%emt 0:00:04]} 3. Bg2 {[%emt 0:00:08]} d5 {[%emt 0:00:04]} 4. cxd5 {[%emt 0:00:07]} Nxd5 {[%emt 0:00:04]} 5. Nc3 {[%emt 0:00:06]} Nc7 {[%emt 0:00:05]} 6. Qa4+ {[%emt 0:00:08]} Bd7 {[%emt 0:01:01]} 7. Qb3 {[%emt 0:00:08] A34: Symmetrical English: 2 Nc3, lines with ...d5.} Nc6 {[%emt 0:01:06]} 8. Qxb7 {[%emt 0:00:07]} Nd4 {[%emt 0:00:16]} 9. Qe4 {[%emt 0:00:08] Inhibits Nc2+. White has an edge.} g6 {[%emt 0:00:56] ...Bf5 is the strong threat.} 10. Qb1 {[%emt 0:00:07]} Bg7 {[%emt 0:01:30]} 11. d3 {[%emt 0:02:35]} Rb8 {[%emt 0:05:54]} 12. Bd2 {[%emt 0:00:17]} O-O {[%emt 0:12:43][%cal Oc5c4][%mdl 1024] Black has compensation.} 13. e3 {[%emt 0:12:57] [#]} ({But not} 13. Nf3 Bc6 $15) (13. Qc1 $11) 13... Ndb5 $146 {[%emt 0:14:37]} ({Black should try} 13... Nc6 $1 $17 {[%cal Rc6e5] White must now prevent ...Ne5.} 14. f4 c4) ({Predecessor:} 13... Bc6 14. Kf1 Bxg2+ 15. Kxg2 Nc6 16. Nf3 Nb4 17. d4 Ne6 18. a3 Nd5 19. Qa2 Nb6 {½-½ (43) Markowski,T (2557)-Tomczak,J (2596) Warsaw 2017}) 14. Nge2 {[%emt 0:03:26]} Bg4 {[%emt 0:19:01]} (14... Bf5 $1 $15) 15. Qc2 $1 $11 {[%emt 0:10:45]} Qd7 {[%emt 0:08:29]} 16. Rd1 {[%emt 0:12:34]} Rfd8 {[%emt 0:00:07]} 17. Bc1 {[%emt 0:00:08]} Na6 {[%emt 0:16:24]} 18. a3 {[%emt 0:01:02] Prevents Nb4.} Be6 {[%emt 0:00:36]} 19. Ne4 {[%emt 0:01:26]} Nxa3 {[%emt 0:04:34]} 20. bxa3 {[%emt 0:01:45] Hoping for Nd2.} Bb3 {[%emt 0:00:02]} 21. Qd2 {[%emt 0:00:24]} Bxd1 {[%emt 0:00:04]} 22. Qxd1 {[%emt 0:00:47]} Qxd3 {[%emt 0:00:05]} 23. Qxd3 {[%emt 0:01:12]} Rxd3 {[%emt 0:00:02]} 24. Nd2 {[%emt 0:04:51]} (24. Nf4 $14 Rdd8 25. g4) 24... Bb2 $15 {[%emt 0:02:26]} 25. Be4 {[%emt 0:19:18]} Rxa3 {[%emt 0:00:24]} 26. O-O {[%emt 0:00:13] Threatens to win with Bxb2.} Bxc1 {[%emt 0:00:40]} 27. Nxc1 {[%emt 0:00:13]} Nb4 {[%emt 0:03:09]} 28. Nc4 {[%emt 0:03:08]} Ra1 {[%emt 0:01:37][%cal Ob4d5]} 29. Nb3 $132 {[%emt 0:01:00][%mdl 2048] White puts up resistance} Rxf1+ {[%emt 0:00:11]} 30. Kxf1 {[%emt 0:00:05]} f5 {[%emt 0:00:23]} 31. Bf3 {[%emt 0:00:12]} Nd3 {[%emt 0:01:35]} 32. Bd5+ {[%emt 0:02:03]} Kg7 {[%emt 0:00:57]} 33. Nca5 {[%emt 0:00:18]} e5 {[%emt 0:05:17]} 34. Ke2 {[%emt 0:01:53] [#]} (34. e4 $11) 34... e4 $1 $17 {[%emt 0:00:31]} 35. f3 {[%emt 0:00:13] [#]} Nb4 {[%emt 0:00:37]} (35... c4 $1 $17 {[%cal Rc4b3]} 36. Bxc4 Ne5) 36. fxe4 $11 {[%emt 0:00:24]} Nxd5 {[%emt 0:00:05]} 37. exd5 {[%emt 0:00:08]} c4 $2 {[%emt 0:00:32]} (37... Rd8 $11 {and Black has nothing to worry.}) 38. Nc5 $2 {[%emt 0:02:26] Pair of Knights!} (38. Nd4 $18) 38... Rb2+ $14 {[%emt 0:00:43]} 39. Ke1 {[%emt 0:00:14] Strongly threatening d6.} (39. Kd1 $5 {[%cal Rd5d6]} c3 40. Nab3 $16) 39... Kf7 $2 {[%emt 0:02:18]} (39... c3 $11 {and Black is okay.} 40. Nab3 Kf7) 40. d6 $2 {[%emt 0:00:14]} (40. Nxc4 $18 Rc2 41. Nd6+ Kf6 42. Ndb7) 40... Rb8 {[%emt 0:00:46][%mdl 8192]} (40... c3 $11 41. Nab3 Rb1+ 42. Ke2 c2) 41. Nc6 $18 {[%emt 0:31:30] White is clearly winning.} Rb1+ {[%emt 0:03:14]} 42. Kd2 {[%emt 0:00:00] Threatening mate with d7.} c3+ {[%emt 0:01:08]} 43. Kc2 {[%emt 0:00:00] Weighted Error Value: White=0.32/Black=0.27 (precise)} 1-0

[Event "37th ECCC 2022"]
[Site "Mayrhofen"]
[Date "2022.10.04"]
[Round "2.76"]
[White "Vihinen, Teemu"]
[Black "Tabernig, Bernhard"]
[Result "*"]
[ECO "A15"]
[WhiteElo "2126"]
[BlackElo "2310"]
[Annotator "TA"]
[PlyCount "37"]
[EventDate "2022.10.03"]
[EventType "team-tourn"]
[EventCountry "AUT"]
[SourceTitle "playchess.com"]
[Source "ChessBase"]
[SourceQuality "1"]
[TimeControl "40/5400+30:1800+30"]

{[%evp 11,24,3,14,15,31,14,11,29,25,24,16,0,0,-1,25]} 1. c4 {[%emt 0:00:03]} Nf6 {[%emt 0:00:03]} 2. g3 {[%emt 0:00:05]} c5 {[%emt 0:00:04]} 3. Bg2 {[%emt 0:00:08]} d5 {[%emt 0:00:04]} 4. cxd5 {[%emt 0:00:07]} Nxd5 {[%emt 0:00:04]} 5. Nc3 {[%emt 0:00:06]} Nc7 {[%emt 0:00:05]} 6. Qa4+ {[%emt 0:00:08]} Bd7 {[%emt 0:01:01]} 7. Qb3 {[%emt 0:00:08] A34: Symmetrical English: 2 Nc3, lines with ...d5.} Nc6 {[%emt 0:01:06]} 8. Qxb7 {[%emt 0:00:07]} Nd4 {[%emt 0:00:16]} 9. Qe4 {[%emt 0:00:08] Prevents Nc2+.} g6 {[%emt 0:00:56] [#] Threatens to win with ...Bf5.} 10. Qb1 {[%emt 0:00:07]} Bg7 {[%emt 0:01:30]} 11. d3 {[%emt 0:02:35]} Rb8 {[%emt 0:05:54]} 12. Bd2 {[%emt 0:00:17]} O-O {[%emt 0:12:43] [#] An even fight not without its subleties.  Weighted Error Value: White=0.03 (flawless) /Black=0.00 (flawless)} {Predecessor:} 13. e3 $146 Bc6 14. Kf1 Bxg2+ 15. Kxg2 Nc6 16. Nf3 Nb4 17. d4 Ne6 18. a3 Nd5 19. Qa2 {½-½ (43) Markowski,T (2557)-Tomczak,J (2596) Warsaw 2017} *